[Event "January 9 Early 2024"]
[Site "https://www.chess.com"]
[Date "2024.01.11"]
[Round "6"]
[White "Shevchuk, Olexandr"]
[Black "Poormosavi, Seyed Kian"]
[Result "0-1"]
[Board "87"]
[TimeControl "180+1"]
[WhiteFideId "14113775"]
[BlackFideId "12585807"]
[WhiteElo "2509"]
[BlackElo "2739"]
[WhiteTeam "UKR"]
[BlackTeam "IRI"]
[WhiteClock "0:00:18"]
[BlackClock "0:00:52"]

1. d4 {[%clk 0:03:00]}  Nf6 {[%clk 0:02:57]} 2. c4 {[%clk 0:03:01]}  b6 {[%clk 0:02:57]} 3. Nc3 {[%clk 0:02:58]}  Bb7 {[%clk 0:02:58]} 4. f3 {[%clk 0:02:59]}  d5 {[%clk 0:02:57]} 5. cxd5 {[%clk 0:02:59]}  Nxd5 {[%clk 0:02:58]} 6. e4 {[%clk 0:03:00]}  Nxc3 {[%clk 0:02:59]} 7. bxc3 {[%clk 0:03:01]}  e6 {[%clk 0:02:59]} 8. Be3 {[%clk 0:03:01]}  Be7 {[%clk 0:03:00]} 9. Bb5+ {[%clk 0:03:01]}  c6 {[%clk 0:03:00]} 10. Bc4 {[%clk 0:03:00]}  O-O {[%clk 0:03:01]} 11. Ne2 {[%clk 0:03:01]}  Nd7 {[%clk 0:03:01]} 12. O-O {[%clk 0:03:01]}  c5 {[%clk 0:03:00]} 13. Qd2 {[%clk 0:02:59]}  Rc8 {[%clk 0:02:59]} 14. Rac1 {[%clk 0:02:59]}  Qc7 {[%clk 0:02:57]} 15. Bf4 {[%clk 0:02:54]}  Bd6 {[%clk 0:02:55]} 16. Rfd1 {[%clk 0:02:48]}  Rfd8 {[%clk 0:02:54]} 17. Bb5 {[%clk 0:02:38]}  a6 {[%clk 0:02:47]} 18. Ba4 {[%clk 0:02:34]}  b5 {[%clk 0:02:36]} 19. Bb3 {[%clk 0:02:34]}  Nb8 {[%clk 0:02:19]} 20. Bxd6 {[%clk 0:01:54]}  Rxd6 {[%clk 0:02:13]} 21. Qg5 {[%clk 0:01:54]}  Qd8 {[%clk 0:02:06]} 22. Qg3 {[%clk 0:01:51]}  cxd4 {[%clk 0:02:06]} 23. cxd4 {[%clk 0:01:51]}  Rxc1 {[%clk 0:02:06]} 24. Rxc1 {[%clk 0:01:52]}  Nc6 {[%clk 0:02:07]} 25. d5 {[%clk 0:01:46]}  exd5 {[%clk 0:02:01]} 26. Bxd5 {[%clk 0:01:47]}  Na5 {[%clk 0:01:57]} 27. Nf4 {[%clk 0:01:41]}  Bxd5 {[%clk 0:01:50]} 28. Nxd5 {[%clk 0:01:42]}  Nc4 {[%clk 0:01:51]} 29. h3 {[%clk 0:01:31]}  h6 {[%clk 0:01:50]} 30. Rd1 {[%clk 0:01:25]}  Rg6 {[%clk 0:01:42]} 31. Qf4 {[%clk 0:01:17]}  Kh7 {[%clk 0:01:33]} 32. h4 {[%clk 0:01:15]}  Qe8 {[%clk 0:01:22]} 33. Qf5 {[%clk 0:00:55]}  Kh8 {[%clk 0:01:09]} 34. Nc7 {[%clk 0:00:40]}  Qe7 {[%clk 0:00:59]} 35. Rd7 {[%clk 0:00:37]}  Qxh4 {[%clk 0:00:54]} 36. Rd8+ {[%clk 0:00:18]}  Qxd8 {[%clk 0:00:52]} 0-1

[Event "January 9 Early 2024"]
[Site "https://www.chess.com"]
[Date "2024.01.11"]
[Round "6"]
[White "Luukkonen, Tommi"]
[Black "Glashausser, Sho"]
[Result "1-0"]
[Board "89"]
[TimeControl "180+1"]
[WhiteFideId "501808"]
[BlackFideId "30908329"]
[WhiteElo "2321"]
[BlackElo "2160"]
[WhiteTeam "FIN"]
[BlackTeam "USA"]
[WhiteClock "0:01:10"]
[BlackClock "0:00:01"]

1. d4 {[%clk 0:03:00]}  e6 {[%clk 0:02:59]} 2. c4 {[%clk 0:03:00]}  f5 {[%clk 0:02:59]} 3. g3 {[%clk 0:02:58]}  Nf6 {[%clk 0:02:59]} 4. Bg2 {[%clk 0:02:59]}  d5 {[%clk 0:03:00]} 5. Nf3 {[%clk 0:02:58]}  Be7 {[%clk 0:02:57]} 6. O-O {[%clk 0:02:58]}  Ne4 {[%clk 0:02:57]} 7. Qc2 {[%clk 0:02:55]}  c6 {[%clk 0:02:52]} 8. Ne5 {[%clk 0:02:54]}  Nd7 {[%clk 0:02:50]} 9. Nc3 {[%clk 0:02:50]}  Nxe5 {[%clk 0:02:45]} 10. dxe5 {[%clk 0:02:50]}  O-O {[%clk 0:02:42]} 11. Rd1 {[%clk 0:02:45]}  Bc5 {[%clk 0:02:27]} 12. Bxe4 {[%clk 0:02:37]}  fxe4 {[%clk 0:02:26]} 13. Nxe4 {[%clk 0:02:36]}  Be7 {[%clk 0:02:10]} 14. c5 {[%clk 0:02:28]}  Qe8 {[%clk 0:02:10]} 15. Nd6 {[%clk 0:02:27]}  Qh5 {[%clk 0:02:05]} 16. f3 {[%clk 0:02:18]}  Qxe5 {[%clk 0:01:58]} 17. Bf4 {[%clk 0:02:17]}  Rxf4 {[%clk 0:01:44]} 18. gxf4 {[%clk 0:02:16]}  Qxf4 {[%clk 0:01:45]} 19. Qd2 {[%clk 0:02:13]}  Qh4 {[%clk 0:01:28]} 20. Qe1 {[%clk 0:02:08]}  Qh6 {[%clk 0:01:17]} 21. Qg3 {[%clk 0:02:04]}  Bd7 {[%clk 0:00:45]} 22. Nxb7 {[%clk 0:02:03]}  Rf8 {[%clk 0:00:41]} 23. Nd6 {[%clk 0:02:02]}  Bh4 {[%clk 0:00:23]} 24. Qg4 {[%clk 0:01:54]}  Qe3+ {[%clk 0:00:21]} 25. Kh1 {[%clk 0:01:53]}  Rf4 {[%clk 0:00:16]} 26. Qg2 {[%clk 0:01:50]}  Qxc5 {[%clk 0:00:14]} 27. Ne4 {[%clk 0:01:43]}  Qe7 {[%clk 0:00:07]} 28. Ng3 {[%clk 0:01:41]}  e5 {[%clk 0:00:06]} 29. Rg1 {[%clk 0:01:37]}  Kh8 {[%clk 0:00:06]} 30. Nh5 {[%clk 0:01:32]}  Rf7 {[%clk 0:00:05]} 31. e4 {[%clk 0:01:23]}  g6 {[%clk 0:00:05]} 32. Ng3 {[%clk 0:01:21]}  d4 {[%clk 0:00:03]} 33. Qe2 {[%clk 0:01:12]}  c5 {[%clk 0:00:03]} 34. b3 {[%clk 0:01:12]}  Qe8 {[%clk 0:00:01]} 35. Rad1 {[%clk 0:01:10]}  Bb5 {[%clk 0:00:01]} 36. Qg2 {[%clk 0:01:10]}  a5 {[%clk 0:00:01]} 37. Qh3 {[%clk 0:01:10]} 1-0

[Event "January 9 Early 2024"]
[Site "https://www.chess.com"]
[Date "2024.01.11"]
[Round "6"]
[White "Mayaud, Raphael"]
[Black "Tqebuchava, Zurab"]
[Result "1-0"]
[Board "90"]
[TimeControl "180+1"]
[WhiteFideId "627151"]
[BlackFideId "13601113"]
[WhiteElo "2306"]
[BlackElo "2132"]
[WhiteTeam "FRA"]
[BlackTeam "GEO"]
[WhiteClock "0:00:30"]
[BlackClock "0:00:01"]

1. d4 {[%clk 0:03:00]}  d5 {[%clk 0:02:59]} 2. c4 {[%clk 0:03:00]}  c6 {[%clk 0:02:58]} 3. Nf3 {[%clk 0:03:00]}  Nf6 {[%clk 0:02:57]} 4. Nc3 {[%clk 0:03:00]}  e6 {[%clk 0:02:53]} 5. Bg5 {[%clk 0:02:59]}  Be7 {[%clk 0:02:53]} 6. e3 {[%clk 0:02:59]}  h6 {[%clk 0:02:52]} 7. Bh4 {[%clk 0:02:58]}  O-O {[%clk 0:02:48]} 8. cxd5 {[%clk 0:02:43]}  exd5 {[%clk 0:02:44]} 9. Bd3 {[%clk 0:02:42]}  b6 {[%clk 0:02:30]} 10. O-O {[%clk 0:02:32]}  a5 {[%clk 0:02:25]} 11. Re1 {[%clk 0:02:27]}  Ba6 {[%clk 0:02:23]} 12. Bc2 {[%clk 0:02:23]}  Nbd7 {[%clk 0:02:21]} 13. Ne5 {[%clk 0:02:05]}  Nxe5 {[%clk 0:01:58]} 14. dxe5 {[%clk 0:02:06]}  Nd7 {[%clk 0:01:47]} 15. Bg3 {[%clk 0:01:39]}  Re8 {[%clk 0:01:34]} 16. Qh5 {[%clk 0:01:32]}  Nf8 {[%clk 0:01:30]} 17. Rad1 {[%clk 0:01:25]}  Bb4 {[%clk 0:01:27]} 18. f4 {[%clk 0:01:09]}  Bxc3 {[%clk 0:01:26]} 19. bxc3 {[%clk 0:01:08]}  Ra7 {[%clk 0:01:05]} 20. Bh4 {[%clk 0:01:08]}  Qc8 {[%clk 0:00:56]} 21. g4 {[%clk 0:00:55]}  g6 {[%clk 0:00:50]} 22. Qxh6 {[%clk 0:00:53]}  Qxg4+ {[%clk 0:00:49]} 23. Kf2 {[%clk 0:00:35]}  c5 {[%clk 0:00:32]} 24. Bf6 {[%clk 0:00:33]}  Qh5 {[%clk 0:00:01]} 25. Qg7# {[%clk 0:00:30]} 1-0

[Event "January 9 Early 2024"]
[Site "https://www.chess.com"]
[Date "2024.01.11"]
[Round "6"]
[White "Averchenko, Sergej"]
[Black "Gevorgyan, Maria"]
[Result "1-0"]
[Board "91"]
[TimeControl "180+1"]
[WhiteFideId "4131533"]
[BlackFideId "13300270"]
[WhiteElo "2003"]
[BlackElo "2412"]
[WhiteTeam "RUS"]
[BlackTeam "ARM"]
[WhiteClock "0:00:58"]
[BlackClock "0:00:18"]

1. d4 {[%clk 0:02:56]}  Nf6 {[%clk 0:02:59]} 2. c4 {[%clk 0:02:56]}  c5 {[%clk 0:02:57]} 3. d5 {[%clk 0:02:55]}  e6 {[%clk 0:02:53]} 4. Nf3 {[%clk 0:02:53]}  exd5 {[%clk 0:02:52]} 5. cxd5 {[%clk 0:02:54]}  d6 {[%clk 0:02:52]} 6. Nc3 {[%clk 0:02:54]}  g6 {[%clk 0:02:51]} 7. g3 {[%clk 0:02:54]}  Bg7 {[%clk 0:02:50]} 8. Bg2 {[%clk 0:02:54]}  O-O {[%clk 0:02:51]} 9. O-O {[%clk 0:02:53]}  Re8 {[%clk 0:02:51]} 10. Nd2 {[%clk 0:02:53]}  a6 {[%clk 0:02:50]} 11. a4 {[%clk 0:02:52]}  Nbd7 {[%clk 0:02:50]} 12. Nc4 {[%clk 0:02:51]}  Qe7 {[%clk 0:02:42]} 13. Bf4 {[%clk 0:02:42]}  Ne5 {[%clk 0:02:29]} 14. Bxe5 {[%clk 0:02:38]}  dxe5 {[%clk 0:02:29]} 15. d6 {[%clk 0:02:39]}  Qd8 {[%clk 0:02:27]} 16. a5 {[%clk 0:02:30]}  Be6 {[%clk 0:02:26]} 17. Nb6 {[%clk 0:02:27]}  Rb8 {[%clk 0:02:26]} 18. Rc1 {[%clk 0:02:21]}  Nd7 {[%clk 0:02:25]} 19. Nca4 {[%clk 0:01:57]}  Nxb6 {[%clk 0:02:24]} 20. Nxb6 {[%clk 0:01:57]}  Bf8 {[%clk 0:02:21]} 21. d7 {[%clk 0:01:48]}  Re7 {[%clk 0:02:21]} 22. Rxc5 {[%clk 0:01:44]}  Bxd7 {[%clk 0:02:21]} 23. Rd5 {[%clk 0:01:39]}  Qc7 {[%clk 0:02:13]} 24. Rxd7 {[%clk 0:01:37]}  Rxd7 {[%clk 0:02:10]} 25. Qxd7 {[%clk 0:01:38]}  Qc5 {[%clk 0:02:10]} 26. Bd5 {[%clk 0:01:31]}  Be7 {[%clk 0:02:07]} 27. Kg2 {[%clk 0:01:20]}  Rf8 {[%clk 0:01:28]} 28. Qxb7 {[%clk 0:01:17]}  Qxa5 {[%clk 0:01:22]} 29. Nd7 {[%clk 0:01:16]}  Rd8 {[%clk 0:00:56]} 30. e4 {[%clk 0:01:14]}  Qb5 {[%clk 0:00:43]} 31. Qxb5 {[%clk 0:01:11]}  axb5 {[%clk 0:00:42]} 32. Nxe5 {[%clk 0:01:12]}  Bf6 {[%clk 0:00:36]} 33. Nxf7 {[%clk 0:01:07]}  Rxd5 {[%clk 0:00:35]} 34. exd5 {[%clk 0:01:05]}  Kxf7 {[%clk 0:00:35]} 35. Rd1 {[%clk 0:00:59]}  Bxb2 {[%clk 0:00:26]} 36. Rb1 {[%clk 0:00:57]}  Be5 {[%clk 0:00:21]} 37. Rxb5 {[%clk 0:00:57]}  h5 {[%clk 0:00:20]} 38. f4 {[%clk 0:00:58]}  Bd6 {[%clk 0:00:18]} 39. Kf3 {[%clk 0:00:58]} 1-0

[Event "January 9 Early 2024"]
[Site "https://www.chess.com"]
[Date "2024.01.11"]
[Round "6"]
[White "Waldhausen Gordon, Frederick"]
[Black "Mekhitarian, Krikor Sevag"]
[Result "1-0"]
[Board "92"]
[TimeControl "180+1"]
[WhiteFideId "2409143"]
[BlackFideId "2107660"]
[WhiteElo "2553"]
[BlackElo "2744"]
[WhiteTeam "SCO"]
[BlackTeam "BRA"]
[WhiteClock "0:00:56"]
[BlackClock "0:00:03"]

1. f4 {[%clk 0:03:00]}  g6 {[%clk 0:02:52]} 2. Nf3 {[%clk 0:03:01]}  Bg7 {[%clk 0:02:53]} 3. g3 {[%clk 0:03:01]}  d5 {[%clk 0:02:52]} 4. Bg2 {[%clk 0:03:02]}  Nh6 {[%clk 0:02:37]} 5. O-O {[%clk 0:02:59]}  O-O {[%clk 0:02:38]} 6. c3 {[%clk 0:02:58]}  c5 {[%clk 0:02:37]} 7. d3 {[%clk 0:02:58]}  d4 {[%clk 0:02:38]} 8. e4 {[%clk 0:02:55]}  dxe3 {[%clk 0:02:37]} 9. Bxe3 {[%clk 0:02:55]}  Qc7 {[%clk 0:02:38]} 10. Na3 {[%clk 0:02:51]}  Ng4 {[%clk 0:02:32]} 11. Qe2 {[%clk 0:02:51]}  Nxe3 {[%clk 0:02:32]} 12. Qxe3 {[%clk 0:02:52]}  e6 {[%clk 0:02:18]} 13. Nc4 {[%clk 0:02:48]}  Rd8 {[%clk 0:02:17]} 14. a4 {[%clk 0:02:46]}  Nd7 {[%clk 0:02:14]} 15. Nce5 {[%clk 0:02:41]}  Nf6 {[%clk 0:02:09]} 16. Ng5 {[%clk 0:02:39]}  Rf8 {[%clk 0:01:31]} 17. Ne4 {[%clk 0:02:37]}  Nd5 {[%clk 0:01:26]} 18. Qxc5 {[%clk 0:02:36]}  Rd8 {[%clk 0:00:55]} 19. Qxc7 {[%clk 0:02:32]}  Nxc7 {[%clk 0:00:56]} 20. d4 {[%clk 0:02:31]}  Nd5 {[%clk 0:00:55]} 21. Kf2 {[%clk 0:02:23]}  Rb8 {[%clk 0:00:53]} 22. Nc5 {[%clk 0:02:21]}  Bf8 {[%clk 0:00:49]} 23. Rfd1 {[%clk 0:02:07]}  b6 {[%clk 0:00:36]} 24. Ne4 {[%clk 0:01:50]}  Bb7 {[%clk 0:00:31]} 25. a5 {[%clk 0:01:45]}  bxa5 {[%clk 0:00:21]} 26. Rxa5 {[%clk 0:01:41]}  Ba8 {[%clk 0:00:18]} 27. Rd2 {[%clk 0:01:38]}  Rb7 {[%clk 0:00:11]} 28. Nc5 {[%clk 0:01:32]}  Rc7 {[%clk 0:00:09]} 29. Ncd3 {[%clk 0:01:26]}  Rb8 {[%clk 0:00:07]} 30. Rd1 {[%clk 0:01:22]}  f6 {[%clk 0:00:07]} 31. Ng4 {[%clk 0:01:19]}  Bg7 {[%clk 0:00:07]} 32. Rda1 {[%clk 0:01:16]}  Bc6 {[%clk 0:00:07]} 33. Rxa7 {[%clk 0:01:10]}  Rxa7 {[%clk 0:00:06]} 34. Rxa7 {[%clk 0:01:10]}  Bb5 {[%clk 0:00:07]} 35. Nc5 {[%clk 0:01:10]}  Be8 {[%clk 0:00:05]} 36. Nxe6 {[%clk 0:00:58]}  Rxb2+ {[%clk 0:00:04]} 37. Ke1 {[%clk 0:00:58]}  Rb1+ {[%clk 0:00:03]} 38. Kd2 {[%clk 0:00:58]}  Bf7 {[%clk 0:00:03]} 39. Bxd5 {[%clk 0:00:56]} 1-0

[Event "January 9 Early 2024"]
[Site "https://www.chess.com"]
[Date "2024.01.11"]
[Round "6"]
[White "Vachier-Lagrave, Maxime"]
[Black "Rakhmatullaev, Almas"]
[Result "1-0"]
[Board "93"]
[TimeControl "180+1"]
[WhiteFideId "623539"]
[BlackFideId "14205793"]
[WhiteElo "3172"]
[BlackElo "2837"]
[WhiteTeam "FRA"]
[BlackTeam "UZB"]
[WhiteClock "0:00:52"]
[BlackClock "0:00:13"]

1. e4 {[%clk 0:03:00]}  e5 {[%clk 0:02:58]} 2. Nf3 {[%clk 0:03:00]}  Nf6 {[%clk 0:02:59]} 3. Nxe5 {[%clk 0:02:59]}  Nxe4 {[%clk 0:02:59]} 4. Qe2 {[%clk 0:02:58]}  Qe7 {[%clk 0:03:00]} 5. Qxe4 {[%clk 0:02:58]}  d6 {[%clk 0:03:00]} 6. f4 {[%clk 0:02:59]}  dxe5 {[%clk 0:02:57]} 7. fxe5 {[%clk 0:02:59]}  Nc6 {[%clk 0:02:52]} 8. Nc3 {[%clk 0:02:56]}  Qxe5 {[%clk 0:02:48]} 9. Qxe5+ {[%clk 0:02:50]}  Nxe5 {[%clk 0:02:49]} 10. d4 {[%clk 0:02:49]}  Nc6 {[%clk 0:02:43]} 11. Nb5 {[%clk 0:02:48]}  Bd6 {[%clk 0:02:40]} 12. c3 {[%clk 0:02:39]}  O-O {[%clk 0:02:31]} 13. Bd3 {[%clk 0:02:30]}  Re8+ {[%clk 0:02:25]} 14. Kf2 {[%clk 0:02:30]}  Be6 {[%clk 0:02:16]} 15. Nxd6 {[%clk 0:02:29]}  cxd6 {[%clk 0:02:16]} 16. Bf4 {[%clk 0:02:29]}  Rad8 {[%clk 0:02:13]} 17. Rhe1 {[%clk 0:02:29]}  h6 {[%clk 0:02:11]} 18. h3 {[%clk 0:02:16]}  a6 {[%clk 0:02:08]} 19. a4 {[%clk 0:02:08]}  Na5 {[%clk 0:02:04]} 20. b4 {[%clk 0:01:41]}  Bc4 {[%clk 0:01:50]} 21. Bc2 {[%clk 0:01:41]}  Nc6 {[%clk 0:01:45]} 22. Bxd6 {[%clk 0:01:36]}  Be6 {[%clk 0:01:23]} 23. Bc5 {[%clk 0:01:27]}  Ne7 {[%clk 0:01:13]} 24. c4 {[%clk 0:01:17]}  Nc8 {[%clk 0:00:34]} 25. d5 {[%clk 0:01:17]}  Bd7 {[%clk 0:00:34]} 26. a5 {[%clk 0:01:14]}  g6 {[%clk 0:00:26]} 27. Rxe8+ {[%clk 0:01:12]}  Rxe8 {[%clk 0:00:25]} 28. Re1 {[%clk 0:01:13]}  Rxe1 {[%clk 0:00:23]} 29. Kxe1 {[%clk 0:01:14]}  Kg7 {[%clk 0:00:24]} 30. Kf2 {[%clk 0:01:11]}  Kf6 {[%clk 0:00:24]} 31. Ke3 {[%clk 0:01:12]}  Ke5 {[%clk 0:00:20]} 32. Bd4+ {[%clk 0:01:04]}  Kd6 {[%clk 0:00:20]} 33. Bb3 {[%clk 0:01:05]}  f5 {[%clk 0:00:15]} 34. Bg7 {[%clk 0:00:59]}  h5 {[%clk 0:00:14]} 35. Kf4 {[%clk 0:00:58]}  Ke7 {[%clk 0:00:13]} 36. Be5 {[%clk 0:00:52]} 1-0

[Event "January 9 Early 2024"]
[Site "https://www.chess.com"]
[Date "2024.01.11"]
[Round "6"]
[White "Terry, Renato"]
[Black "Krzyzanowski, Marcin"]
[Result "1-0"]
[Board "94"]
[TimeControl "180+1"]
[WhiteFideId "3803457"]
[BlackFideId "1132199"]
[WhiteElo "2989"]
[BlackElo "2788"]
[WhiteTeam "PER"]
[BlackTeam "POL"]
[WhiteClock "0:00:51"]
[BlackClock "0:00:02"]

1. d4 {[%clk 0:03:00]}  Nf6 {[%clk 0:02:59]} 2. Bg5 {[%clk 0:03:01]}  d5 {[%clk 0:02:58]} 3. e3 {[%clk 0:03:01]}  c5 {[%clk 0:02:57]} 4. c3 {[%clk 0:03:01]}  Qb6 {[%clk 0:02:54]} 5. Qb3 {[%clk 0:03:01]}  Nc6 {[%clk 0:02:52]} 6. Nf3 {[%clk 0:03:00]}  Ne4 {[%clk 0:02:48]} 7. Bf4 {[%clk 0:03:00]}  c4 {[%clk 0:02:47]} 8. Qc2 {[%clk 0:02:57]}  h6 {[%clk 0:02:42]} 9. Nbd2 {[%clk 0:02:55]}  Bf5 {[%clk 0:02:39]} 10. Nxe4 {[%clk 0:02:48]}  Bxe4 {[%clk 0:02:38]} 11. Qd2 {[%clk 0:02:44]}  e6 {[%clk 0:02:31]} 12. Be2 {[%clk 0:02:44]}  Qd8 {[%clk 0:02:28]} 13. O-O {[%clk 0:02:37]}  b5 {[%clk 0:02:24]} 14. Ne5 {[%clk 0:02:32]}  Nxe5 {[%clk 0:02:16]} 15. Bxe5 {[%clk 0:02:32]}  Bd6 {[%clk 0:02:16]} 16. f3 {[%clk 0:02:31]}  Bxe5 {[%clk 0:01:48]} 17. fxe4 {[%clk 0:02:29]}  Bc7 {[%clk 0:01:46]} 18. exd5 {[%clk 0:02:04]}  Qh4 {[%clk 0:01:27]} 19. g3 {[%clk 0:02:01]}  Qg5 {[%clk 0:00:35]} 20. dxe6 {[%clk 0:02:01]}  fxe6 {[%clk 0:00:32]} 21. Bf3 {[%clk 0:01:50]}  O-O-O {[%clk 0:00:27]} 22. a4 {[%clk 0:01:50]}  h5 {[%clk 0:00:20]} 23. axb5 {[%clk 0:01:46]}  h4 {[%clk 0:00:21]} 24. g4 {[%clk 0:01:46]}  Rhf8 {[%clk 0:00:21]} 25. Rxa7 {[%clk 0:01:14]}  h3 {[%clk 0:00:19]} 26. Ra8+ {[%clk 0:01:10]}  Bb8 {[%clk 0:00:19]} 27. Qe2 {[%clk 0:01:05]}  Rf6 {[%clk 0:00:17]} 28. Qxc4+ {[%clk 0:01:02]}  Kd7 {[%clk 0:00:14]} 29. Qc6+ {[%clk 0:00:59]}  Ke7 {[%clk 0:00:14]} 30. Rxb8 {[%clk 0:00:58]}  Qxe3+ {[%clk 0:00:11]} 31. Kh1 {[%clk 0:00:58]}  Rxf3 {[%clk 0:00:09]} 32. Rb7+ {[%clk 0:00:56]}  Kf6 {[%clk 0:00:02]} 33. Rxf3+ {[%clk 0:00:55]}  Kg5 {[%clk 0:00:02]} 34. Rxe3 {[%clk 0:00:55]}  Ra8 {[%clk 0:00:03]} 35. Rxg7+ {[%clk 0:00:53]}  Kh4 {[%clk 0:00:01]} 36. Rxh3+ {[%clk 0:00:50]}  Kxh3 {[%clk 0:00:02]} 37. Qg2+ {[%clk 0:00:50]}  Kh4 {[%clk 0:00:02]} 38. Qg3# {[%clk 0:00:51]} 1-0

[Event "January 9 Early 2024"]
[Site "https://www.chess.com"]
[Date "2024.01.11"]
[Round "6"]
[White "Djokic, Mihailo"]
[Black "Lysyj, Igor"]
[Result "1-0"]
[Board "95"]
[TimeControl "180+1"]
[WhiteFideId "976440"]
[BlackFideId "4150120"]
[WhiteElo "2679"]
[BlackElo "2842"]
[WhiteTeam "SRB"]
[BlackTeam "FID"]
[WhiteClock "0:00:57"]
[BlackClock "0:00:10"]

1. e4 {[%clk 0:03:00]}  e5 {[%clk 0:02:58]} 2. Nf3 {[%clk 0:03:00]}  Nc6 {[%clk 0:02:58]} 3. Nc3 {[%clk 0:03:01]}  Nf6 {[%clk 0:02:58]} 4. Bb5 {[%clk 0:03:02]}  Bb4 {[%clk 0:02:57]} 5. O-O {[%clk 0:03:02]}  O-O {[%clk 0:02:56]} 6. d3 {[%clk 0:03:02]}  Bxc3 {[%clk 0:02:56]} 7. bxc3 {[%clk 0:03:02]}  d6 {[%clk 0:02:57]} 8. Re1 {[%clk 0:03:03]}  a6 {[%clk 0:02:56]} 9. Ba4 {[%clk 0:03:03]}  Ne7 {[%clk 0:02:51]} 10. d4 {[%clk 0:02:58]}  Ng6 {[%clk 0:02:50]} 11. dxe5 {[%clk 0:02:58]}  dxe5 {[%clk 0:02:34]} 12. Ba3 {[%clk 0:02:59]}  Bg4 {[%clk 0:02:31]} 13. Bxf8 {[%clk 0:02:58]}  Qxf8 {[%clk 0:02:31]} 14. h3 {[%clk 0:02:47]}  Rd8 {[%clk 0:02:25]} 15. Qe2 {[%clk 0:02:47]}  Bxf3 {[%clk 0:02:12]} 16. Qxf3 {[%clk 0:02:46]}  c5 {[%clk 0:02:10]} 17. Bb3 {[%clk 0:02:45]}  b5 {[%clk 0:01:55]} 18. Bd5 {[%clk 0:02:45]}  Nxd5 {[%clk 0:01:52]} 19. exd5 {[%clk 0:02:44]}  Qd6 {[%clk 0:01:51]} 20. a4 {[%clk 0:02:39]}  b4 {[%clk 0:01:50]} 21. c4 {[%clk 0:02:33]}  Rf8 {[%clk 0:01:48]} 22. c3 {[%clk 0:02:31]}  f5 {[%clk 0:01:13]} 23. cxb4 {[%clk 0:02:23]}  cxb4 {[%clk 0:01:13]} 24. Rac1 {[%clk 0:02:17]}  e4 {[%clk 0:01:11]} 25. Qb3 {[%clk 0:02:10]}  Nf4 {[%clk 0:01:03]} 26. Qg3 {[%clk 0:01:57]}  b3 {[%clk 0:00:58]} 27. c5 {[%clk 0:01:50]}  Qe5 {[%clk 0:00:58]} 28. Qxb3 {[%clk 0:01:47]}  Qf6 {[%clk 0:00:35]} 29. c6 {[%clk 0:01:43]}  Qg5 {[%clk 0:00:28]} 30. Qg3 {[%clk 0:01:27]}  Ne2+ {[%clk 0:00:28]} 31. Rxe2 {[%clk 0:01:28]}  Qxc1+ {[%clk 0:00:28]} 32. Kh2 {[%clk 0:01:28]}  Qc4 {[%clk 0:00:28]} 33. Rd2 {[%clk 0:01:22]}  f4 {[%clk 0:00:28]} 34. Qg4 {[%clk 0:01:20]}  Qc3 {[%clk 0:00:24]} 35. Qe6+ {[%clk 0:01:10]}  Kh8 {[%clk 0:00:24]} 36. Re2 {[%clk 0:01:10]}  f3 {[%clk 0:00:23]} 37. Rxe4 {[%clk 0:01:08]}  fxg2 {[%clk 0:00:22]} 38. Qf7 {[%clk 0:01:02]}  g1=Q+ {[%clk 0:00:13]} 39. Kxg1 {[%clk 0:01:02]}  Rg8 {[%clk 0:00:11]} 40. Re8 {[%clk 0:00:59]}  Qc1+ {[%clk 0:00:10]} 41. Kh2 {[%clk 0:00:57]} 1-0

[Event "January 9 Early 2024"]
[Site "https://www.chess.com"]
[Date "2024.01.11"]
[Round "6"]
[White "Sofronie, Claudia-Ramona"]
[Black "Mrudul Dehankar"]
[Result "0-1"]
[Board "99"]
[TimeControl "180+1"]
[WhiteFideId "1205722"]
[BlackFideId "25096990"]
[WhiteElo "2263"]
[BlackElo "2407"]
[WhiteTeam "ROU"]
[BlackTeam "IND"]
[WhiteClock "0:00:21"]
[BlackClock "0:00:15"]

1. d4 {[%clk 0:03:00]}  Nf6 {[%clk 0:02:58]} 2. Bf4 {[%clk 0:02:59]}  e6 {[%clk 0:02:55]} 3. e3 {[%clk 0:02:58]}  b6 {[%clk 0:02:55]} 4. Nf3 {[%clk 0:02:56]}  Bb7 {[%clk 0:02:55]} 5. Nbd2 {[%clk 0:02:56]}  Be7 {[%clk 0:02:53]} 6. h3 {[%clk 0:02:56]}  O-O {[%clk 0:02:53]} 7. Bd3 {[%clk 0:02:56]}  c5 {[%clk 0:02:52]} 8. c3 {[%clk 0:02:55]}  d6 {[%clk 0:02:52]} 9. O-O {[%clk 0:02:54]}  Nbd7 {[%clk 0:02:52]} 10. e4 {[%clk 0:02:52]}  cxd4 {[%clk 0:01:51]} 11. cxd4 {[%clk 0:02:50]}  a6 {[%clk 0:01:50]} 12. Rc1 {[%clk 0:02:48]}  b5 {[%clk 0:01:50]} 13. Qe2 {[%clk 0:02:42]}  Re8 {[%clk 0:01:41]} 14. Bh2 {[%clk 0:02:39]}  Bf8 {[%clk 0:01:23]} 15. Rc2 {[%clk 0:02:35]}  e5 {[%clk 0:01:23]} 16. dxe5 {[%clk 0:02:30]}  dxe5 {[%clk 0:01:23]} 17. Rfc1 {[%clk 0:02:28]}  Qb6 {[%clk 0:01:08]} 18. Nb3 {[%clk 0:01:47]}  Rad8 {[%clk 0:01:04]} 19. Rc7 {[%clk 0:01:21]}  Bd6 {[%clk 0:00:43]} 20. R7c2 {[%clk 0:01:18]}  Nh5 {[%clk 0:00:41]} 21. Ng5 {[%clk 0:01:07]}  Nf4 {[%clk 0:00:38]} 22. Bxf4 {[%clk 0:01:06]}  exf4 {[%clk 0:00:38]} 23. Qh5 {[%clk 0:01:05]}  Nf6 {[%clk 0:00:16]} 24. Qxf7+ {[%clk 0:01:03]}  Kh8 {[%clk 0:00:16]} 25. Ne6 {[%clk 0:00:42]}  Rd7 {[%clk 0:00:16]} 26. Qxe8+ {[%clk 0:00:21]}  Nxe8 {[%clk 0:00:15]} 0-1